bitfinex-derivatives/quotes_SOLF0:USTF0_20260227
["timestamp","ask_amount","ask_price","bid_price","bid_amount"]
[1772206428312,10.9031,82.543,82.494,6.96443069]
[1772206428714,7.3855066,82.559,82.494,6.96443069]
[1772206428911,7.3855066,82.559,82.505,6.96443069]
[1772206429518,7.3855066,82.568,82.516,6.96443069]
[1772206429720,7.3855066,82.568,82.491,6.96443069]
[1772206430515,7.3855066,82.568,82.501,17.87303069]
[1772206430921,7.3855066,82.568,82.501,6.96443069]
[1772206431319,10.9024,82.548,82.501,6.96443069]
[1772206432317,6.40536003,82.58,82.501,6.96443069]
[1772206432318,10.9034,82.54,82.501,6.96443069]
[1772206432512,10.9034,82.54,82.491,10.9099]
[1772206432722,7.3855066,82.539,82.486,6.96443069]
[1772206433522,10.905,82.529,82.486,6.96443069]
[1772206434021,7.3855066,82.539,82.486,6.96443069]
[1772206434322,7.3855066,82.539,82.495,6.96443069]
[1772206434517,7.3855066,82.554,82.495,6.96443069]
[1772206434821,7.3855066,82.554,82.514,10.9068]
[1772206435213,7.3855066,82.554,82.495,6.96443069]
[1772206436117,7.3855066,82.546,82.499,10.9088]
[1772206436520,7.3855066,82.546,82.495,6.96443069]
[1772206437921,10.9036,82.539,82.495,6.96443069]
[1772206439127,10.9046,82.532,82.495,6.96443069]
[1772206439530,2.98914573,82.52,82.464,6.96443069]
[1772206439923,10.9063,82.519,82.471,6.96443069]
[1772206440223,2.98914573,82.51,82.46,2.98914573]
[1772206440429,10.908,82.506,82.461,6.96443069]
[1772206441334,2.98914573,82.53,82.481,6.96443069]
[1772206441733,10.907,82.513,82.465,6.96443069]
[1772206442130,2.98914573,82.52,82.465,6.96443069]
[1772206442331,10.9069,82.514,82.465,6.96443069]
[1772206442532,10.9069,82.514,82.47,2.98914573]
[1772206443230,10.9078,82.508,82.47,2.98914573]
[1772206443436,2.98914573,82.51,82.465,6.96443069]
[1772206443934,7.3855066,82.519,82.465,6.96443069]
[1772206445944,10.9064,82.518,82.465,6.96443069]
[1772206446137,7.3855066,82.519,82.47,2.98914573]
[1772206448437,7.3855066,82.518,82.47,2.98914573]
[1772206448735,7.3855066,82.518,82.426,335.21]
[1772206448736,7.3855066,82.518,82.46,2.98914573]
[1772206448936,2.98914573,82.49,82.441,6.96443069]
[1772206449736,2.98914573,82.49,82.442,10.9163]
[1772206450139,2.98914573,82.49,82.441,6.96443069]
[1772206450939,2.98914573,82.49,82.448,10.9156]
[1772206451337,7.3855066,82.499,82.448,10.9156]
[1772206452233,7.3855066,82.499,82.454,10.9148]
[1772206453339,7.16780172,82.497,82.447,10.9157]
[1772206453640,7.16780172,82.497,82.427,7.32784719]
[1772206453838,7.16780172,82.497,82.448,7.32784719]
[1772206454542,6.41207202,82.52,82.449,10.9154]
[1772206454543,7.16780172,82.494,82.449,10.9154]
[1772206454743,7.16780172,82.494,82.448,7.32784719]
[1772206454947,10.9106,82.487,82.448,7.32784719]
[1772206455142,7.16780172,82.494,82.448,7.32784719]
[1772206456136,6.41207202,82.52,82.461,10.9138]
[1772206456137,7.16780172,82.519,82.461,10.9138]
[1772206456744,7.16780172,82.503,82.448,7.32784719]
[1772206457844,7.16780172,82.499,82.448,7.32784719]
[1772206458351,10.9096,82.494,82.448,7.32784719]
[1772206458945,7.16780172,82.499,82.448,7.32784719]
[1772206459847,7.16780172,82.513,82.448,7.32784719]
[1772206460150,7.16780172,82.534,82.47,7.32784719]
[1772206460548,10.9056,82.524,82.47,7.32784719]
[1772206460949,7.16780172,82.534,82.47,7.32784719]
[1772206462751,7.16780172,82.515,82.47,7.32784719]
[1772206462953,7.16780172,82.515,82.451,7.32784719]
[1772206463654,10.9088,82.5,82.451,7.32784719]
[1772206464352,7.16780172,82.507,82.451,7.32784719]
[1772206465858,10.908,82.506,82.451,7.32784719]
[1772206466251,7.16780172,82.521,82.453,7.32784719]
[1772206466850,18.07380172,82.521,82.459,7.32784719]
[1772206467860,18.07380172,82.521,82.465,7.32784719]
[1772206468261,7.16780172,82.538,82.465,7.32784719]
[1772206468654,7.16780172,82.538,82.479,7.32784719]
[1772206470068,7.16780172,82.538,82.483,7.32784719]
[1772206470566,7.16780172,82.536,82.483,7.32784719]
[1772206470966,7.16780172,82.536,82.469,7.32784719]
[1772206471260,7.16780172,82.519,82.469,7.32784719]
[1772206471465,7.16780172,82.509,82.459,10.914]
[1772206471654,7.16780172,82.509,82.454,7.32784719]
[1772206472254,7.16780172,82.529,82.47,10.3188044]
[1772206472459,2.99095721,82.52,82.47,2.99095721]
[1772206472660,2.99095721,82.52,82.471,7.32784719]
[1772206473564,7.16780172,82.509,82.457,7.32784719]
[1772206474063,7.16780172,82.499,82.457,7.32784719]
[1772206474363,7.16780172,82.499,82.441,7.32784719]
[1772206474568,2.99095721,82.51,82.451,7.32784719]
[1772206474766,7.16780172,82.514,82.465,10.9133]
[1772206474963,7.16780172,82.514,82.465,18.24114719]
[1772206475161,2.99095721,82.51,82.465,7.32784719]
[1772206477863,7.16780172,82.508,82.465,7.32784719]
[1772206478067,2.99095721,82.5,82.441,7.32784719]
[1772206478567,10.9082,82.505,82.453,7.32784719]
[1772206479163,10.9082,82.505,82.456,7.32857804]
[1772206480466,10.9089,82.499,82.456,7.32857804]
[1772206480671,7.16780172,82.508,82.456,7.32857804]
[1772206480672,2.9912238,82.5,82.456,7.32857804]
[1772206480872,7.21222865,82.499,82.456,7.32857804]
[1772206484062,7.21222865,82.499,82.458,10.9143]
[1772206485082,2.9912238,82.51,82.47,10.9126]
[1772206485277,7.21222865,82.513,82.47,10.9126]
[1772206485468,7.21222865,82.509,82.47,10.9126]
[1772206486069,36.76452404,82.556,82.47,10.9126]
[1772206486070,2.9912238,82.53,82.474,7.22583863]
[1772206486269,7.21222865,82.529,82.474,7.22583863]
[1772206486471,7.21222865,82.519,82.474,7.22583863]
[1772206488674,7.21222865,82.547,82.49,2.9912238]
[1772206488973,7.21222865,82.547,82.491,7.22583863]
[1772206489173,10.20345245,82.54,82.491,7.22583863]
[1772206489470,7.21222865,82.549,82.494,7.22583863]
[1772206490171,11.30749744,82.577,82.453,21.8297]
[1772206490172,7.21222865,82.539,82.48,2.9912238]
[1772206490470,2.9912238,82.53,82.484,7.22583863]
[1772206490773,7.21222865,82.538,82.484,7.22583863]
[1772206491269,10.9039,82.537,82.49,2.9912238]
[1772206491475,18.11612865,82.537,82.484,7.22583863]
[1772206492674,18.11612865,82.537,82.491,7.22583863]
[1772206492873,7.21222865,82.537,82.491,7.22583863]
[1772206493175,7.21222865,82.529,82.476,7.22583863]
[1772206493971,7.21222865,82.529,82.48,10.21706243]
[1772206494275,7.21222865,82.529,82.481,7.22583863]
[1772206494878,10.9052,82.527,82.481,7.22583863]
[1772206496272,10.9061,82.521,82.481,7.22583863]
[1772206496471,7.21222865,82.529,82.47,2.9912238]
[1772206497079,18.11772865,82.525,82.471,7.22583863]
[1772206497374,7.21222865,82.525,82.471,7.22583863]
[1772206498774,7.21222865,82.525,82.472,10.9124]
[1772206499677,2.9912238,82.51,82.46,13.9051238]
[1772206499880,7.21222865,82.509,82.456,7.22583863]
[1772206500478,7.21222865,82.507,82.457,10.9144]
[1772206500875,7.21222865,82.507,82.456,7.22583863]
[1772206501980,7.21222865,82.507,82.464,10.9135]
[1772206502674,7.21222865,82.507,82.47,2.9912238]
[1772206502873,7.21222865,82.529,82.481,7.22583863]
[1772206503080,7.21222865,82.529,82.498,10.9089]
[1772206503279,7.21222865,82.546,82.5,10.21706243]
[1772206503578,22.30589138,82.592,82.449,36.37]
[1772206503579,7.21222865,82.578,82.52,10.21706243]
[1772206503779,7.21222865,82.578,82.531,7.22583863]
[1772206503980,7.21222865,82.569,82.516,7.22583863]
[1772206504179,7.21222865,82.568,82.516,7.22583863]
[1772206504882,7.21222865,82.568,82.52,10.21706243]
[1772206505076,7.21222865,82.568,82.521,7.22583863]
[1772206505975,7.21222865,82.568,82.524,10.9055]
[1772206506376,7.21222865,82.583,82.53,10.21706243]
[1772206506578,7.21222865,82.583,82.537,10.9038]
[1772206507879,7.21222865,82.583,82.544,10.9028]
[1772206508380,7.21222865,82.583,82.52,2.9912238]
[1772206508583,2.9912238,82.59,82.531,7.22583863]
[1772206508791,7.21222865,82.589,82.531,7.22583863]
[1772206508982,7.21222865,82.579,82.536,10.9039]
[1772206509383,2.9912238,82.57,82.491,7.22583863]
[1772206509586,2.9912238,82.57,82.52,10.21706243]
[1772206509888,7.21222865,82.579,82.521,7.22583863]
[1772206510084,7.21222865,82.579,82.532,10.9045]
[1772206510886,7.65348337,82.594,82.541,7.1647724]
[1772206511682,2.9912238,82.59,82.541,7.1647724]
[1772206511887,7.65348337,82.594,82.543,7.1647724]
[1772206512587,7.65348337,82.589,82.543,7.1647724]
[1772206512778,7.65348337,82.589,82.53,10.1559962]
[1772206513083,7.65348337,82.579,82.531,7.1647724]
[1772206513685,7.65348337,82.579,82.53,2.38e-05]
[1772206513889,2.9912238,82.56,82.501,7.1647724]
[1772206514084,7.65348337,82.569,82.511,7.1647724]
[1772206514285,2.9912238,82.56,82.511,7.1647724]
[1772206514693,7.65348337,82.569,82.511,7.1647724]
[1772206514897,2.9912238,82.56,82.511,7.1647724]
[1772206515190,10.9005,82.563,82.513,7.1647724]
[1772206515388,7.65348337,82.584,82.513,7.1647724]
[1772206515789,10.8973,82.587,82.533,7.1647724]
[1772206516888,10.8973,82.587,82.535,7.1647724]
[1772206517888,7.65348337,82.587,82.52,7.1647724]
[1772206518485,7.65348337,82.569,82.52,7.1647724]
[1772206518890,7.65348337,82.569,82.507,7.1647724]
[1772206519996,10.9018,82.553,82.507,7.1647724]
[1772206520497,7.65348337,82.569,82.507,7.1647724]
[1772206521198,7.65348337,82.569,82.509,10.9074]
[1772206521396,7.65348337,82.569,82.51,7.1647724]
[1772206522695,10.8999,82.567,82.51,7.1647724]
[1772206524000,7.65348337,82.566,82.512,10.9071]
[1772206524495,7.65348337,82.564,82.495,7.1647724]
[1772206524897,7.65348337,82.564,82.511,10.9073]
[1772206525491,7.65348337,82.564,82.519,7.1647724]
[1772206525697,7.65348337,82.593,82.519,7.1647724]
[1772206526802,7.65348337,82.581,82.519,7.1647724]
[1772206527504,7.65348337,82.581,82.537,10.9037]
[1772206528001,18.55178337,82.579,82.537,10.9037]
[1772206529000,7.65348337,82.579,82.543,10.9029]
[1772206529603,7.65348337,82.579,82.549,10.9022]
[1772206530611,7.65348337,82.579,82.542,10.9032]
[1772206531209,7.65348337,82.579,82.548,10.9023]
[1772206532206,7.44880581,82.579,82.548,10.9023]
[1772206532403,10.8971,82.589,82.548,10.9023]
[1772206532601,10.8961,82.596,82.548,10.9023]
[1772206534112,10.897,82.589,82.536,7.1647724]
[1772206534407,7.65348337,82.592,82.511,7.1647724]
[1772206534900,7.65348337,82.592,82.533,10.9043]
[1772206535905,10.8975,82.585,82.533,18.0690724]
[1772206536113,10.8975,82.585,82.534,7.1647724]
[1772206536416,7.65348337,82.584,82.534,7.1647724]
[1772206537212,2.98618804,82.58,82.534,7.1647724]
[1772206537416,10.8986,82.577,82.534,7.1647724]
[1772206538213,10.8999,82.567,82.523,10.9055]
[1772206538417,7.65348337,82.566,82.524,7.1647724]
[1772206538618,2.98618804,82.59,82.531,7.39620333]
[1772206538820,10.28730574,82.59,82.531,7.39620333]
[1772206539019,10.8988,82.575,82.532,7.39620333]
[1772206539320,7.3011177,82.569,82.515,7.39620333]
[1772206539715,10.9007,82.561,82.515,7.39620333]
[1772206540619,6.95851491,82.567,82.515,7.39620333]
[1772206542018,6.95851491,82.566,82.5,7.42761946]
[1772206542523,17.85931491,82.56,82.509,10.9075]
[1772206543622,6.95851491,82.559,82.501,10.9085]
[1772206544322,6.95851491,82.559,82.508,10.9075]
[1772206544820,6.95851491,82.559,82.513,10.9069]
[1772206546924,6.95851491,82.569,82.528,10.905]
[1772206547519,10.8998,82.568,82.528,10.905]
[1772206547724,6.95851491,82.567,82.52,10.906]
[1772206548421,6.95851491,82.589,82.53,7.42761946]
[1772206548629,11.24833517,82.637,82.531,7.42761946]
[1772206548828,9.42913033,82.636,82.531,7.42761946]
[1772206549128,10.8932,82.618,82.556,7.42761946]
[1772206550218,10.8932,82.618,82.57,10.8994]
[1772206550420,6.40066813,82.65,82.571,7.42761946]
[1772206550725,6.95851491,82.648,82.571,7.42761946]
[1772206550918,6.95851491,82.646,82.571,7.42761946]
[1772206551123,6.95851491,82.627,82.571,7.42761946]
[1772206552629,10.8922,82.626,82.571,7.42761946]
[1772206553019,6.95851491,82.625,82.571,7.42761946]
[1772206553225,6.95851491,82.625,82.551,7.42761946]
[1772206553426,6.40066813,82.63,82.551,7.42761946]
[1772206553427,10.8945,82.608,82.551,7.42761946]
[1772206554330,10.8955,82.601,82.551,7.42761946]
[1772206555826,10.8965,82.593,82.551,7.42761946]
[1772206556531,10.8975,82.586,82.551,7.42761946]
[1772206556727,6.95851491,82.595,82.551,7.42761946]
[1772206557836,10.897,82.59,82.551,7.42761946]
[1772206558625,6.95851491,82.595,82.551,7.42761946]
[1772206560234,10.8948,82.606,82.551,7.42761946]
[1772206560532,6.95851491,82.605,82.521,7.42761946]
[1772206560729,6.95851491,82.579,82.521,7.42761946]
[1772206561433,17.85761491,82.573,82.521,7.42761946]
[1772206561634,6.95851491,82.573,82.505,7.42761946]
[1772206561835,6.95851491,82.558,82.505,7.42761946]
[1772206562537,6.95851491,82.558,82.514,7.42761946]
[1772206563134,6.95851491,82.558,82.514,18.33451946]
[1772206564242,6.95851491,82.556,82.499,7.42761946]
[1772206564940,6.95851491,82.554,82.501,10.9085]
[1772206565837,6.95851491,82.569,82.499,7.42761946]
[1772206566937,6.95851491,82.566,82.516,10.9065]
[1772206568137,10.9005,82.562,82.516,10.9065]
[1772206568733,10.9015,82.555,82.503,7.42761946]
[1772206569838,10.9027,82.546,82.503,7.42761946]
[1772206571042,10.9036,82.539,82.494,292.12840389]
[1772206571240,7.14291768,82.552,82.494,292.12840389]
[1772206571441,7.14291768,82.549,82.494,292.12840389]
[1772206571642,7.14291768,82.529,82.473,6.82808974]
[1772206572142,10.9084,82.503,82.446,6.82808974]
[1772206572339,7.14291768,82.504,82.446,6.82808974]
[1772206573238,7.14291768,82.504,82.428,6.82808974]
[1772206574935,10.9122,82.474,82.428,6.82808974]
[1772206575133,6.40066813,82.51,82.428,6.82808974]
[1772206575134,7.14291768,82.509,82.428,6.82808974]
[1772206575639,10.9121,82.475,82.428,6.82808974]
[1772206577545,10.911,82.484,82.428,6.82808974]
[1772206578140,10.9119,82.477,82.428,6.82808974]
[1772206578449,7.14291768,82.489,82.39,62.0]
[1772206578746,10.9186,82.426,82.363,10.9268]
[1772206578949,7.14291768,82.45,82.36,6.40066813]
[1772206580441,7.14291768,82.45,82.361,6.82808974]
[1772206580746,7.14291768,82.469,82.381,6.82808974]
[1772206581642,7.14291768,82.469,82.4,6.40066813]
[1772206581839,7.14291768,82.486,82.401,6.82808974]
[1772206582243,7.14291768,82.486,82.408,10.9209]
[1772206582443,7.14291768,82.486,82.409,6.82808974]
[1772206583147,7.14291768,82.486,82.422,6.82808974]
[1772206584549,7.14291768,82.484,82.422,6.82808974]
[1772206585054,7.14291768,82.484,82.426,6.82808974]
[1772206585348,7.14291768,82.503,82.426,6.82808974]
[1772206585555,7.14291768,82.529,82.441,6.82808974]
[1772206585753,7.14291768,82.527,82.46,6.82808974]
[1772206586363,7.14291768,82.525,82.46,6.82808974]
[1772206587056,7.14291768,82.514,82.46,6.82808974]
[1772206588453,7.14291768,82.514,82.462,10.9136]
[1772206588651,6.40066813,82.55,82.463,6.82808974]
[1772206588652,7.14291768,82.532,82.463,6.82808974]
[1772206588852,7.14291768,82.529,82.463,6.82808974]
[1772206589159,7.14291768,82.549,82.476,6.82808974]
[1772206589456,7.14291768,82.549,82.446,6.82808974]
[1772206590262,7.14291768,82.516,82.43,6.82808974]
[1772206591059,7.14291768,82.511,82.445,6.82808974]
[1772206592758,7.14291768,82.511,82.457,10.9143]
[1772206593874,7.14291768,82.508,82.428,6.82808974]
[1772206594262,7.14291768,82.483,82.429,10.918]
[1772206594964,7.14291768,82.483,82.437,10.917]
[1772206595463,6.89628519,82.5,82.438,6.72884296]
[1772206595659,10.9091,82.498,82.449,10.9153]
[1772206596262,17.80538519,82.498,82.449,10.9153]
[1772206596664,6.89628519,82.498,82.449,10.9153]
[1772206597763,6.89628519,82.498,82.455,10.9145]
[1772206598762,6.89628519,82.498,82.447,10.9157]
[1772206599154,6.40066813,82.52,82.439,10.9167]
[1772206599155,17.80718519,82.484,82.439,10.9167]
[1772206599466,6.89628519,82.483,82.401,6.72884296]
[1772206600167,6.72646345,82.468,82.401,6.72884296]
[1772206600561,10.914,82.46,82.401,6.72884296]
[1772206600761,6.72646345,82.468,82.401,6.72884296]
[1772206600961,6.72646345,82.484,82.401,6.72884296]
[1772206601764,10.9129,82.469,82.409,6.8593963]
[1772206602471,6.72646345,82.462,82.409,6.8593963]
[1772206602967,6.72646345,82.462,82.366,2.11083075]
[1772206602968,10.9156,82.448,82.391,6.8593963]
[1772206603869,10.9146,82.456,82.393,6.8593963]
[1772206604464,10.9136,82.464,82.396,6.8593963]
[1772206605665,6.72646345,82.479,82.403,6.8593963]
[1772206605964,6.72646345,82.494,82.411,6.8593963]
[1772206606573,6.72646345,82.494,82.423,6.8593963]
[1772206607266,6.72646345,82.491,82.423,6.8593963]
[1772206607466,21.8124,82.52,82.39,8.24922723]
[1772206607467,6.72646345,82.489,82.391,6.8593963]
[1772206608166,6.72646345,82.468,82.399,6.8593963]
[1772206609068,6.72646345,82.465,82.401,10.9217]
[1772206609466,6.72646345,82.46,82.399,6.8593963]
[1772206610067,6.72646345,82.457,82.399,6.8593963]
[1772206610269,6.72646345,82.457,82.386,10.9238]
[1772206610777,6.72646345,82.445,82.381,6.8593963]
[1772206610971,6.72646345,82.445,82.382,10.9242]
[1772206611170,6.72646345,82.445,82.382,17.7835963]
[1772206611373,36.37,82.485,82.364,6.8593963]
[1772206611374,6.72646345,82.421,82.364,6.8593963]
[1772206612471,6.72646345,82.421,82.365,10.9266]
[1772206612677,6.72646345,82.458,82.371,6.8593963]
[1772206613271,6.72646345,82.458,82.403,10.9214]
[1772206613676,6.72646345,82.458,82.389,6.8593963]
[1772206613877,6.72646345,82.458,82.411,10.9204]
[1772206614277,6.72646345,82.489,82.405,6.8593963]
[1772206614780,6.72646345,82.467,82.405,6.8593963]
[1772206615275,9.16794155,82.51,82.421,6.8593963]
[1772206615480,9.43070873,82.504,82.421,6.8593963]
[1772206615680,9.43070873,82.503,82.421,6.8593963]
[1772206615877,9.43070873,82.502,82.419,10.9193]
[1772206616078,9.16794155,82.49,82.403,6.8593963]
[1772206616380,9.43070873,82.489,82.403,6.8593963]
[1772206616587,10.9134,82.465,82.403,6.8593963]
[1772206617188,6.72646345,82.489,82.403,6.8593963]
[1772206617591,6.72646345,82.471,82.416,10.9198]
[1772206618088,6.72646345,82.471,82.403,6.8593963]
[1772206618386,10.9137,82.463,82.407,10.921]
[1772206618690,6.72646345,82.471,82.408,6.8593963]
[1772206619590,10.9135,82.464,82.408,6.8593963]
[1772206620185,6.72646345,82.471,82.408,6.8593963]
[1772206620387,6.72646345,82.507,82.411,6.8593963]
[1772206620582,6.72646345,82.507,82.431,6.8593963]
[1772206621184,6.72646345,82.507,82.44,6.8593963]
[1772206622595,10.908,82.506,82.44,6.8593963]
[1772206623099,6.72646345,82.507,82.443,6.8593963]
[1772206623985,6.72646345,82.507,82.445,6.8593963]
[1772206624295,10.9079,82.506,82.445,6.8593963]
[1772206624494,6.72646345,82.506,82.445,6.8593963]
[1772206625197,6.72646345,82.506,82.446,6.8593963]
[1772206626192,6.72646345,82.506,82.43,9.16794155]
[1772206626193,6.72646345,82.506,82.453,6.8593963]
[1772206626393,6.72646345,82.522,82.453,6.8593963]
[1772206626594,6.72646345,82.539,82.453,6.8593963]
[1772206626795,6.72646345,82.539,82.473,6.8593963]
[1772206627196,6.72646345,82.535,82.473,6.8593963]
[1772206628194,9.16794155,82.54,82.473,6.8593963]
[1772206628195,6.72646345,82.534,82.473,6.8593963]
[1772206628594,6.72646345,82.534,82.451,6.8593963]
[1772206629598,6.72646345,82.522,82.454,6.8593963]
[1772206630303,6.92693963,82.52,82.462,10.9136]
[1772206631799,6.92693963,82.52,82.47,10.9127]
[1772206631999,6.92693963,82.52,82.454,6.8593963]
[1772206632000,6.92693963,82.549,82.454,6.8593963]
[1772206632304,6.92693963,82.549,82.45,9.16794155]
[1772206632305,6.92693963,82.549,82.495,6.31072316]
[1772206632801,6.92693963,82.549,82.478,6.31072316]
[1772206632996,6.92693963,82.538,82.486,10.9105]
[1772206633496,6.92693963,82.538,82.478,6.31072316]
[1772206633698,6.92693963,82.555,82.481,6.31072316]
[1772206634092,6.92693963,82.555,82.501,6.31072316]
[1772206635606,6.92693963,82.555,82.513,10.9069]
[1772206636604,6.91484021,82.553,82.505,10.908]
[1772206637401,6.9059174,82.551,82.497,10.909]
[1772206638403,6.77943379,82.544,82.504,10.9082]
[1772206638608,6.77943379,82.544,82.486,6.31072316]
[1772206639907,10.9031,82.543,82.496,10.9091]
[1772206640302,17.62315411,82.543,82.496,10.9091]
[1772206640505,17.62315411,82.543,82.486,6.31072316]
[1772206641102,6.71080229,82.54,82.486,6.31072316]
[1772206641306,6.71080229,82.54,82.462,6.31072316]
[1772206641505,6.71080229,82.539,82.462,6.31072316]
[1772206642509,10.9065,82.517,82.462,6.31072316]
[1772206642808,6.69836895,82.521,82.462,6.31072316]
[1772206643899,10.9061,82.52,82.462,6.31072316]
[1772206644408,10.9061,82.52,82.45,9.16794155]
[1772206644409,10.9061,82.52,82.464,6.31072316]
[1772206644608,9.16794155,82.56,82.464,6.31072316]
[1772206644609,10.9051,82.528,82.464,6.31072316]
[1772206645906,10.9059,82.522,82.467,6.31072316]
[1772206647009,6.47652143,82.532,82.47,6.31072316]
[1772206647812,17.33405498,82.531,82.475,6.31072316]
[1772206648011,6.42149867,82.53,82.475,6.31072316]
[1772206648708,6.42149867,82.53,82.478,10.9116]
[1772206649106,6.41330311,82.515,82.46,6.31072316]
[1772206650005,6.33108528,82.539,82.476,6.31072316]
[1772206650817,6.33069753,82.517,82.476,6.31072316]
[1772206653521,6.30542212,82.514,82.458,6.31072316]
[1772206654615,10.907,82.513,82.468,10.9128]
[1772206655318,10.907,82.513,82.46,6.31072316]
[1772206655522,17.2079398,82.513,82.46,6.31072316]
[1772206657115,10.9095,82.494,82.447,6.31072316]
[1772206657313,6.28635056,82.499,82.447,6.31072316]
[1772206657624,6.28635056,82.513,82.451,6.31072316]
[1772206657823,6.26202517,82.511,82.456,6.31072316]
[1772206659022,10.9089,82.499,82.456,6.31072316]
[1772206659622,10.908,82.506,82.458,6.65154438]
[1772206660013,10.9087,82.5,82.458,6.65154438]
[1772206660617,10.9079,82.507,82.46,6.49795113]
[1772206662023,6.05208619,82.525,82.464,6.49795113]
[1772206662825,6.05184358,82.522,82.464,6.49795113]
[1772206663225,6.05184358,82.522,82.48,4.27068101]
[1772206665726,16.93153087,82.521,82.48,4.27068101]
[1772206666031,6.02553087,82.52,82.48,4.27068101]
[1772206666235,6.01939107,82.519,82.475,10.912]
[1772206666432,6.01939107,82.517,82.475,10.912]
[1772206667531,6.01939107,82.517,82.481,10.9112]
[1772206668138,6.01939107,82.517,82.486,10.9104]
[1772206668334,10.9048,82.53,82.486,10.9104]
[1772206668729,10.9048,82.53,82.49,4.27068101]
[1772206669036,10.9053,82.527,82.49,4.27068101]
[1772206669537,16.89868648,82.527,82.49,4.27068101]
[1772206669739,16.89868648,82.527,82.491,10.9098]
[1772206670738,16.89868648,82.527,82.49,4.27068101]
[1772206671338,10.9056,82.524,82.49,4.27068101]
[1772206671544,16.91582476,82.524,82.49,4.27068101]
[1772206671734,16.91582476,82.524,82.48,15.18198101]
[1772206671929,10.9059,82.522,82.48,15.18198101]
[1772206672134,16.91032599,82.522,82.48,15.18198101]
[1772206672535,16.91032599,82.522,82.44,21.8333]
[1772206672536,6.00442599,82.509,82.46,4.27068101]
[1772206673138,10.9084,82.503,82.46,4.27068101]
[1772206673332,5.99852155,82.524,82.48,4.27068101]
[1772206673840,5.99852155,82.524,82.471,6.49795113]
[1772206674732,10.908,82.506,82.471,6.49795113]
[1772206675931,10.9087,82.5,82.471,6.49795113]
[1772206680647,5.80726437,82.512,82.47,4.27068101]
[1772206681743,5.80726437,82.512,82.47,10.76863214]
[1772206683942,5.84301033,82.508,82.47,10.76863214]
[1772206684840,5.84284493,82.52,82.48,10.76863214]
[1772206685043,5.84284493,82.52,82.481,6.49795113]
[1772206685948,5.84284493,82.52,82.48,4.27068101]
[1772206686651,5.8270992,82.517,82.48,4.27068101]
[1772206687351,5.82234922,82.514,82.48,4.27068101]
[1772206687553,5.82234922,82.514,82.476,10.9118]
[1772206688759,5.83354279,82.512,82.46,4.27068101]
[1772206689158,5.83354279,82.512,82.46,10.76863214]
[1772206689961,5.98715523,82.509,82.469,10.9128]
[1772206690561,5.98715523,82.509,82.462,10.9136]
[1772206691160,5.98715523,82.509,82.462,17.56672372]
[1772206691960,16.93911468,82.508,82.462,17.56672372]
[1772206692162,6.03131468,82.507,82.462,17.56672372]
[1772206692464,6.03131468,82.507,82.47,4.27068101]
[1772206693060,10.9081,82.505,82.47,4.27068101]
[1772206694462,6.0228484,82.543,82.49,4.27068101]
[1772206694664,6.02262937,82.541,82.5,4.27068101]
[1772206694855,6.02262937,82.554,82.501,6.65312372]
[1772206695060,6.02262937,82.554,82.52,4.27068101]
[1772206695262,6.02262937,82.554,82.511,6.65312372]
[1772206695859,6.02262937,82.554,82.52,4.27068101]
[1772206696255,6.02491289,82.568,82.524,6.65312372]
[1772206696455,10.8986,82.577,82.531,6.65312372]
[1772206696656,10.8986,82.577,82.54,4.27068101]
[1772206696860,10.8986,82.577,82.531,6.65312372]
[1772206696861,6.02468634,82.577,82.531,6.65312372]
[1772206697064,6.0203297,82.569,82.52,4.27068101]
[1772206698068,10.9006,82.562,82.52,4.27068101]
[1772206698365,6.12565538,82.589,82.54,4.27068101]
[1772206698561,6.12565538,82.589,82.531,6.65312372]
[1772206698762,6.12565538,82.589,82.54,4.27068101]
[1772206699157,6.12565538,82.589,82.543,6.65312372]
[1772206700071,327.07054066,82.597,82.55,4.27068101]
[1772206700367,6.14673904,82.596,82.543,6.65312372]
[1772206700670,6.14673904,82.596,82.55,4.27068101]
[1772206701367,6.14673904,82.596,82.55,10.92380473]
[1772206701863,10.8962,82.595,82.55,10.92380473]
[1772206702271,6.14673904,82.596,82.55,10.92380473]
[1772206703069,6.14673904,82.596,82.551,6.65312372]
[1772206704570,10.8965,82.593,82.551,6.65312372]
[1772206704774,6.14673904,82.596,82.56,4.27068101]
[1772206704973,17.01694741,82.595,82.551,6.65312372]
[1772206705268,6.12074741,82.594,82.531,6.65312372]
[1772206705468,10.8973,82.587,82.551,6.65312372]
[1772206706470,10.8973,82.587,82.56,4.27068101]
[1772206706670,10.8962,82.595,82.56,4.27068101]
[1772206706973,6.16089303,82.598,82.56,10.92380473]
[1772206707173,10.8949,82.605,82.58,4.27068101]
[1772206707570,10.8949,82.605,82.571,6.65312372]
[1772206708167,6.30400943,82.635,82.6,4.27068101]
[1772206708373,6.30400943,82.663,82.62,4.27068101]
[1772206708972,6.30400943,82.663,82.611,6.65312372]